Cogmind - Beta 10.2 @@@ ROGUE MODE // 2020.11.18 @ 07:33:03 // Halloween2020/ForbiddenLore Player: Coronach Result: Destroyed by as-78594 with Assembled Heavy Rifle Performance ------------- Evolutions (0) 0 Regions Visited (2) 400 Robots Destroyed (21) 105 Value Destroyed (337) 337 Prototype IDs (2) 40 Alien Tech Used (0) 0 Bonus (0) 0 TOTAL SCORE: 882 Bonus ------- None Cogmind --------- Core Integrity 0/250 Matter 260/300 Energy 100/100 System Corruption 0% Temperature Cool (0) Movement Rolling (90) Ox1 Location -10/Mines Parts ------- > --- POWER (1) -------- (None) > --- PROPULSION (2) --- Wheel > --- UTILITY (2) ------ Large Storage Unit Signal Interpreter > --- WEAPON (2) ------- Battle Cannon Mini Grenade Launcher > --- INVENTORY (10) --- Ion Engine Improved Heat Sink Medium Matter Pod (85) Large Matter Pod (150) Sensor Array Targeting Computer Launcher Guidance Computer ECM Suite Peak State ------------ > --- POWER ------------ Ion Engine > --- PROPULSION ------- Light Treads Compact Wheel > --- UTILITY ---------- Large Storage Unit Signal Interpreter > --- WEAPON ----------- Heavy EM Pulse Gun EMP Blaster > --- INVENTORY -------- Ion Engine Wheel Large Matter Pod Sensor Array Targeting Computer ECM Suite Assault Rifle EMP Blaster Mini Grenade Launcher [Rating: 10] Favorites ----------- Power Ion Engine Engine Ion Engine Propulsion Compact Wheel Treads Light Treads Leg Aluminum Leg Wheel Compact Wheel Utility Signal Interpreter Device Weight Redist. System Storage Large Storage Unit Processor Signal Interpreter Weapon Heavy EM Pulse Gun Energy Gun Heavy EM Pulse Gun Ballistic Cannon Battle Cannon Launcher EMP Blaster Build | -11 -10 -10 ------- Run | Scr Mat Min Slots Evolved . | . . . Power . | . . . Propulsion . | . . . Utility . | . . . Weapon . | . . . Parts Attached 19 | 4 11 4 Power . | . . . Engine . | . . . Core . | . . . Reactor . | . . . Propulsion 5 | 3 1 1 Treads 1 | 1 . . Leg . | . . . Wheel 4 | 2 1 1 Hover . | . . . Flight . | . . . Utility 4 | . 4 . Device 2 | . 2 . Storage 1 | . 1 . Processor 1 | . 1 . Hackware . | . . . Protection . | . . . Artifact . | . . . Weapon 10 | 1 6 3 Energy Gun 5 | 1 4 . Energy Cannon . | . . . Ballistic Gun . | . . . Ballistic Cannon 1 | . . 1 Launcher 4 | . 2 2 Special Weapon . | . . . Impact Weapon . | . . . Slashing Weapon . | . . . Piercing Weapon . | . . . Special Melee Weapon . | . . . Unidentified Prototypes . | . . . Parts Lost 6 | . . 6 Power 1 | . . 1 Propulsion 2 | . . 2 Utility . | . . . Weapon 3 | . . 3 Highest Loss Streak 4 | . . 4 Average Slot Usage (%) 97 | . 98 96 Engine 14 | . 14 14 Treads 12 | . 14 9 Wheel 14 | . 13 17 Storage 14 | . 14 14 Processor 13 | . 12 14 Energy Gun 18 | . 17 22 Launcher 7 | . 10 2 Naked Turns . | . . . Heaviest Build 28 | 11 28 28 Greatest Support 26 | 20 26 26 Greatest Overweight (x) 2 | . 1 2 Average Overweight (x) . | . . 1 Largest Inventory Capacity 10 | 6 10 10 Average Capacity 8 | 6 8 10 Most Carried 10 | 6 10 10 Average Carried 8 | 4 7 9 Final Capacity 10 | 6 10 10 Final Carried 10 | 4 10 8 Class Distribution -------------------- 100% | Mutant Dominant Class ---------------- Mutant | -10/Materials Mutant | -10/Mines Resources | -11 -10 -10 ----------- Run | Scr Mat Min Matter Collected 568 | 231 271 66 Remotely . | . . . Salvage Created 471 | 57 336 78 Parts 43 | 1 37 5 Haulers Intercepted . | . . . Recyclers Shooed 3 | 1 1 1 Parts Field Recycled . | . . . Retrieved Matter . | . . . Parts Self-Destructed . | . . . Prevented . | . . . Kills | -11 -10 -10 ------- Run | Scr Mat Min Combat Hostiles Destroyed 13 | . 10 3 Guns 6 | . 4 2 AOE 6 | . 5 1 Classes Destroyed 9 | 1 6 2 Worker 2 | . 1 1 Builder 1 | . 1 . Recycler 1 | 1 . . Operator 2 | . 2 . Watcher 3 | . 3 . Swarmer 9 | . 9 . Grunt 2 | . 1 1 Demolisher 1 | . . 1 Assembled 1 | . . 1 Best Kill Streak 6 | 1 6 2 Combat Bots Only 3 | . 3 1 Max Kills in Single Turn 2 | 1 2 1 Gunslinging . | . . . Exploded 2 | . 2 1 Melee . | . . . Uniques/NPCs Destroyed . | . . . Combat | -11 -10 -10 -------- Run | Scr Mat Min Damage Taken 796 | . 193 603 Core 258 | . 72 186 Absorbed by Shields . | . . . Core Remaining (%) 100 | 100 . . Volleys Fired 39 | 2 24 13 Largest 2 | 2 2 2 Hottest 90 | 80 90 90 Shots Fired 59 | 4 32 23 Gun 42 | 4 20 18 Cannon 3 | . . 3 Launcher 14 | . 12 2 Special . | . . . Kinetic 3 | . . 3 Thermal 4 | 4 . . Explosive 2 | . . 2 Electromagnetic 50 | . 32 18 Robot Hit Streak 9 | 4 9 4 Robot Miss Streak 3 | . 3 3 Penetration Max . | . . . Secondary Targets . | . . . Shots Hit Robots 33 | 4 17 12 Core Hits 26 | 2 17 7 Critical Hits . | . . . Critical Kills . | . . . Critical Parts Destroyed . | . . . Melee Attacks . | . . . Impact . | . . . Slashing . | . . . Piercing . | . . . Sneak Attacks . | . . . Combat Hostiles . | . . . Follow-up Attacks . | . . . Damage Inflicted 846 | 46 523 277 Guns 397 | 46 219 132 Cannons 18 | . . 18 Explosions 431 | . 304 127 Melee . | . . . Ramming . | . . . Kinetic 18 | . . 18 Thermal 102 | 46 56 . Explosive 127 | . . 127 Electromagnetic 599 | . 467 132 Impact . | . . . Slashing . | . . . Piercing . | . . . Highest Corruption . | . . . Average Corruption . | . . . Corruption Purged . | . . . Overload Shots . | . . . Overflow Damage 3 | . . 3 Projectiles . | . . . Explosions 3 | . . 3 Melee . | . . . Knockbacks . | . . . Impact . | . . . Kinetic . | . . . Secondary . | . . . Self-Inflicted Damage 24 | . 17 7 Shots 4 | . 3 1 Rammed . | . . . Targets Rammed . | . . . Kicked . | . . . Crushed . | . . . Highest Temperature 120 | 56 36 120 Average Temperature 35 | 31 18 52 Received Heat Transfer 39 | . 24 15 Siege Activations . | . . . Robots Corrupted 1 | . 1 . Combat Hostiles 1 | . 1 . Parts Fried 3 | . 3 . Impact Corruptions . | . . . Robots Melted . | . . . Combat Hostiles . | . . . Parts Melted . | . . . Heat Transferred 150 | 100 50 . Parts Sabotaged . | . . . Parts Stolen . | . . . Parts Stripped . | . . . Power Chain Reactions 2 | . 2 . Missiles Intercepted . | . . . Alert | -11 -10 -10 ------- Run | Scr Mat Min Peak Influence 292 | 5 292 144 Initial 89 | . 3 89 Average 154 | 3 172 128 Maximum Alert Level 1 | . 1 . Low Security (%) 82 | 100 73 100 Level 1 17 | . 26 . Level 2 . | . . . Level 3 . | . . . Level 4 . | . . . Level 5 . | . . . High Security . | . . . Max Security . | . . . Squads Dispatched 2 | . 2 . Investigation . | . . . Extermination . | . . . Reinforcement 2 | . 2 . Assault . | . . . Garrison . | . . . Intercept . | . . . Construction Impeded . | . . . Haulers Reinforced . | . . . Stealth | -11 -10 -10 --------- Run | Scr Mat Min Distress Signals 1 | . 1 . Communications Jammed . | . . . Distress Signals . | . . . Times Spotted 32 | . 17 15 Peak Tracking Total 7 | . 4 7 Tactical Retreats 4 | . 2 2 Traps | -11 -10 -10 ------- Run | Scr Mat Min Traps Triggered 2 | . 2 . Indirectly 1 | . 1 . Trap Hack Attempts . | . . . Triggered . | . . . Disarmed 1 | . 1 . Reprogrammed . | . . . Reused . | . . . Traps Extracted . | . . . Installed . | . . . Triggered . | . . . Machines | -11 -10 -10 ---------- Run | Scr Mat Min Machines Disabled 2 | . 1 1 Max in Single Turn 1 | . 1 1 Machines Sabotaged . | . . . Garrisons Compromised . | . . . Overloaded Fab Kills . | . . . Fab Network Shutdowns . | . . . Hacking | -11 -10 -10 --------- Run | Scr Mat Min Machines Accessed 7 | . 7 . Terminals 4 | . 4 . Fabricators . | . . . Repair Stations 1 | . 1 . Recycling Units 2 | . 2 . Scanalyzers . | . . . Garrison Access . | . . . Total Hacks 27 | . 27 . Successful 20 | . 20 . Failed 7 | . 7 . Catastrophic . | . . . Database Lockouts . | . . . Manual 16 | . 16 . Terminals 17 | . 17 . Fabricators . | . . . Repair Stations 6 | . 6 . Recycling Units 4 | . 4 . Scanalyzers . | . . . Garrison Access . | . . . Terminal Hacks 8 | . 8 . Prototype ID Bank 1 | . 1 . Terminal Index 1 | . 1 . Alert Level 1 | . 1 . Locate Traps 2 | . 2 . Disarm Traps 1 | . 1 . Recall Investigation 1 | . 1 . Hauler Manifests 1 | . 1 . Fabricator Hacks . | . . . Repair Station Hacks 4 | . 4 . Scan Component 2 | . 2 . Repair 2 | . 2 . Recycling Unit Hacks . | . . . Scanalyzer . | . . . Garrison Access Hacks . | . . . Unauthorized Hacks 8 | . 8 . Terminals 5 | . 5 . Track 1 | . 1 . Botnet 3 | . 3 . Operators 1 | . 1 . Fabricators . | . . . Repair Stations 1 | . 1 . Mechanics 1 | . 1 . Recycling Units 2 | . 2 . Reject 2 | . 2 . Scanalyzers . | . . . Garrison Access . | . . . Data Cores Recovered . | . . . Used . | . . . Hacking Detections 6 | . 6 . Full Trace Events 1 | . 1 . Feedback Events . | . . . Feedback Blocked . | . . . Robot Schematics Acquired . | . . . Robots Built . | . . . Matter . | . . . Time . | . . . Total Robot Build Rating . | . . . Part Schematics Acquired . | . . . Parts Built . | . . . Matter . | . . . Time . | . . . Total Part Build Rating . | . . . Parts Repaired 2 | . 2 . Time 58 | . 58 . Parts Recycled . | . . . Recycled Matter . | . . . Retrieved Matter . | . . . Retrieved Components . | . . . Parts Scanalyzed . | . . . Part Schematics Acquired . | . . . Parts Damaged . | . . . Bothacking | -11 -10 -10 ------------ Run | Scr Mat Min Used RIF Installer . | . . . Robots Hacked . | . . . Non-combat . | . . . Combat . | . . . Robot Hacks Applied . | . . . Relay Couplers Released . | . . . Robots Rewired . | . . . Allies Hacked . | . . . Hacks Repelled . | . . . Allies | -11 -10 -10 -------- Run | Scr Mat Min Total Allies . | . . . Largest Group . | . . . Highest-Rated Group . | . . . Highest-Rated Ally . | . . . Total Orders . | . . . Ally Attacks . | . . . Total Damage . | . . . Kills . | . . . Allies Corrupted . | . . . Allies Melted . | . . . Intel | -11 -10 -10 ------- Run | Scr Mat Min Robot Analysis Total . | . . . Derelict Logs Recovered . | . . . Drone Launches . | . . . Drone Recoveries . | . . . Exploration | -11 -10 -10 ------------- Run | Scr Mat Min Turns Passed 956 | 28 641 287 Spaces Moved 665 | 10 429 226 Core . | . . . Treads 61 | 10 49 2 Legs . | . . . Wheels 604 | . 380 224 Hover . | . . . Flight . | . . . Fastest Speed 90 | 160 100 90 Average Speed 111 | 160 113 106 Slowest Speed 180 | 160 180 180 Overloaded Moves . | . . . Propulsion Burnouts . | . . . Robots Hopped . | . . . Cave-ins Triggered . | . . . Exploration Rate (%) 47 | 3 81 58 Regions Visited 2 Branch Regions 1 Pre-discovered Areas . | . . . Known Exits Taken 1 | . 1 . Unknown Exits Taken 1 | 1 . . Scrap Searched . | . . . Spaces Dug . | . . . Terrain Destroyed 33 | . 11 22 Melee . | . . . Projectile 1 | . . 1 AOE 32 | . 11 21 Terrain Rammed . | . . . Walls Destroyed . | . . . Machines Disabled . | . . . Actions | -11 -10 -10 --------- Run | Scr Mat Min Total 821 | 18 552 251 Wait 69 | . 67 2 Move 663 | 9 428 226 Hop . | . . . Pick Up 15 | . 11 4 Fast Attach 8 | 1 7 . Attach 6 | 1 1 4 Detach 1 | . 1 . Swap 5 | 2 3 . Drop 15 | 3 10 2 Fire 39 | 2 24 13 Melee . | . . . Ram . | . . . Kick . | . . . Crush . | . . . Escape Stasis . | . . . Rewire . | . . . Trap . | . . . Miscellaneous . | . . . Route ------- -11/Scrapyard -10/Materials (discovered 2 exits: *Mat / *Min) -10/Mines (discovered 2 exits: *Mat x2) History --------- Turn | Location | Event 12 | -11/Scrapyard | Discovered new exit (range 3) 29 | -11/Scrapyard | Entered Materials 177 | -10/Materials | Discovered new exit (range 14) 187 | -10/Materials | Identified exit to Materials 243 | -10/Materials | Repaired EMP Blaster 270 | -10/Materials | Repaired Com. Wheel 310 | -10/Materials | Build established: Mutant 411 | -10/Materials | Discovered new exit (range 6) 415 | -10/Materials | Identified exit to Mines 670 | -10/Materials | Entered Mines 684 | -10/Mines | Met a Derelict bent on vengeance 704 | -10/Mines | Discovered exit to Materials (range 6) 778 | -10/Mines | A weapon hastily lodged in a ceiling crevice suddenly fell to the ground 832 | -10/Mines | Assembled infested the area 837 | -10/Mines | Assisted by a Guerilla fighting off Assembled 857 | -10/Mines | Core integrity fell below 50% 902 | -10/Mines | Discovered exit to Materials (range 5) 940 | -10/Mines | Core integrity fell below 20% 957 | -10/Mines | Destroyed by as-78594 with Assembled Heavy Rifle Last Messages --------------- 00869_ K-01 Serf collects debris. 00870_ K-01 Serf destroyed. 00871_ K-01 Serf collects debris. 00875_ The unstable cave ceiling collapses. 00878_ K-01 Serf collects debris. 00880_ Acquired Launcher Guidance Computer. 00880_ K-01 Serf collects debris. 00882_ The unstable cave ceiling collapses. 00882_ Extracted 20 matter. 00883_ Acquired Med. Matter Pod. 00884_ K-01 Serf collects debris. 00902_ EXIT=FOUND: MATERIALS 00911_ EMP Blaster destroyed. 00924_ Com. Wheel destroyed. 00926_ Hvy. EM Pulse Gun destroyed. 00948_ S-10 Pest destroyed. 00953_ as-28382 destroyed. 00953_ Laser Drill disabled. 00953_ Ion Engine destroyed. 00953_ Destroyed Ion Engine. Map ----- +----------------------------------------------------+ | | | | | | | | | | | | | | | | | | | | | | | | | | | | | | | | | | | | | | | | | ???????????????????##???????????????????????? | | ?????????????????### ??????????????????????? | | ?????????????????# #????????????????????? | | ?????????????????# #######?????????????? | | ?????????????????# a #?????????????? | | ???????????????### % @ #?????????????? | | ???????????????# a [ """ #?????????????? | | ?????????????### # ""a""" #?????????????? | | #????????????# # T= "" """ #?????????????? | | ##???#####???# ##### #?????????????? | | ##??# ##??# #???# #?????????????? | | ##?# #??# #???############??????????##?? | | ### #??# #????????????????????????# ##? | | ## #??# #???????????????####????? #? | | #??# #??????????###### ##??## #? | | #???# #??????????# #### #? | | # ##### #??????????? ## #? | | ### #?????????????# #?? | | ??## #######?????????????# #?? | | ???## ##???????????????????# ## #?? | | ????#####?????????????????# ## ### #??? | | ??????????????????????????# ## ##??? | | ??????????????????????????##### ###### #???? | | ??????????????????????????????# #????# #???? | | ?????????????????????????????## ##???# ##??? | | ????????????????????????????## ##??#%=##?? | | ????###?????????????????????# #?#%[ ##? | | ??## ##????????????????????# < ## = #? | | ??# ####?????????????????# ]%[ #? | | ### ###???????????????# ##? | +----------------------------------------------------+ Best States ------------- Heat Dissipation 25 Energy Generation 10 Energy Capacity 250 Matter Stores 300 Matter Capacity 300 Sight Range 16 Terrain Scan Density 10 Additional Mass Support 6 Evasion (%) 42 Recoil Reduction 1 Item Schematics ----------------- None Robot Schematics ------------------ None Fabricated ------------ Nothing Alien Tech Used ----------------- None Achievements -------------- None Challenges ------------ None Game ------ Seed PortableHeatBiocell Manual? 0 Play Time 00:27:37 Cumulative 86.9 hours Start 2020.11.17 @ 18:26:53 End 2020.11.18 @ 07:33:03 Sessions 3 Manual Loads 0 Difficulty Rogue Special Mode Halloween2020/ForbiddenLore Game No. 39 Rogue 36 Adventurer 0 Explorer 3 Win Type - Total 1 Types 1/0/0/0/0/0/0/0/0 Lore% 40 Gallery% 53 Achievement% 37 Wizard Run 0 Options --------- ASCII 0 Keyboard 0 Movement Numpad Keybinds 0 Fullscreen 2 Font 16/Dina Map View 76x50 Tactical HUD 1 Map Filters NONE Filters NONE Steam 1 RUN: 0a57c7dc-3044-402b-bf53-1524b0ee35b2